Workbook

Sheet Dashboard
M3: 2018
M4: OCTUBRE | BX4: Empresa - Sector | BY4: Empresa - Sector
A5: Acumulado a: | B5: =M4 -> OCTUBRE | E5: Datos acumulados | G5: Cuota Negocio / Total ASEMPLEO | J5: =empresa_ccaa!L5 -> iEMPRESA | L5: ¿▲"sin" mi Empresa? | BY5: p.p.
A6: Total | B6: Facturación, € | D6: (a) | E6: =J5 -> iEMPRESA | I6: Cuota de Facturación | J6: ∆ | L6: (b) | M6: ∆ (a-b) | BY6: Puntos porcentuales
B7: 2017 | C7: 2018 | D7: % i.a. | E7: =B7 -> 2017 | F7: =C7 -> 2018 | G7: % i.a. | H7: =E7 -> 2017 | I7: =F7 -> 2018 | J7: Dif.P.P. | L7: % i.a. | M7: Dif.P.P. | BX7: Dif. Ritmo | BY7: Importancia Relativa | CB7: Empresa
A8: Nacional | B8: =empresa_ccaa!F12 -> 3085939767 | C8: =empresa_ccaa!G12 -> 3315479369 | D8: =((C8/B8)-1) -> 0.07438239871 | E8: =empresa_ccaa!K12 -> 0 | F8: =empresa_ccaa!L12 -> 0 | G8: =IF(E8>0,((F8/E8)-1),"n.a.") -> n.a. | H8: =E8/B8 -> 0 | I8: =F8/C8 -> 0 | J8: =(I8-H8)*100 -> 0 | L8: =((C8-F8)/(B8-E8))-1 -> 0.07438239871 | M8: =(D8-L8)*100 -> 0 | BX8: =IF(G8="n.a.","n.a.",(G8-D8)*100) -> n.a. | BY8: =empresa_ccaa!M12-empresa_ccaa!H12 ->  | CA8: criterio_rank | CB8: peso | CC8: Comunidad | CD8: % i.a. | CE8: Total_Regional
A9: ANDALUCIA | B9: =empresa_ccaa!F13 -> 281344044.2 | C9: =empresa_ccaa!G13 -> 288625419.7 | D9: =((C9/B9)-1) -> 0.0258806809 | E9: =empresa_ccaa!K13 -> 0 | F9: =empresa_ccaa!L13 -> 0 | G9: n.a. | H9: 0 | I9: 0 | J9: =(I9-H9)*100 -> 0 | L9: =((C9-F9)/(B9-E9))-1 -> 0.0258806809 | M9: 0 | BX9: =IF(G9="n.a.","n.a.",(G9-D9)*100) -> n.a. | BY9: =empresa_ccaa!M13-empresa_ccaa!H13 ->  | CA9: =IF(CB9=$CB$27,1,0) -> 1 | CB9: =I9 -> 0 | CC9: =A9 -> ANDALUCIA | CD9: =G9 -> n.a. | CE9: =D9 -> 0.0258806809
A10: ARAGON | B10: =empresa_ccaa!F14 -> 169604054.9 | C10: =empresa_ccaa!G14 -> 166190783.1 | D10: =((C10/B10)-1) -> -0.02012494214 | E10: =empresa_ccaa!K14 -> 0 | F10: =empresa_ccaa!L14 -> 0 | G10: n.a. | H10: 0 | I10: 0 | J10: 0 | L10: -0.02012494214 | M10: 0 | BX10: =IF(G10="n.a.","n.a.",(G10-D10)*100) -> n.a. | BY10: =empresa_ccaa!M14-empresa_ccaa!H14 ->  | CA10: =IF(CB10=$CB$27,1,0) -> 1 | CB10: =I10 -> 0 | CC10: =A10 -> ARAGON | CD10: =G10 -> n.a. | CE10: =D10 -> -0.02012494214
A11: ASTURIAS | B11: =empresa_ccaa!F15 -> 59074292.72 | C11: =empresa_ccaa!G15 -> 61733974.35 | D11: 0.04502265724 | E11: =empresa_ccaa!K15 -> 0 | F11: =empresa_ccaa!L15 -> 0 | G11: n.a. | H11: 0 | I11: 0 | J11: 0 | L11: 0.04502265724 | M11: 0 | BX11: =IF(G11="n.a.","n.a.",(G11-D11)*100) -> n.a. | BY11: =empresa_ccaa!M15-empresa_ccaa!H15 ->  | CA11: =IF(CB11=$CB$27,1,0) -> 1 | CB11: =I11 -> 0 | CC11: =A11 -> ASTURIAS | CD11: =G11 -> n.a. | CE11: =D11 -> 0.04502265724
A12: BALEARES | B12: =empresa_ccaa!F16 -> 15892106.06 | C12: =empresa_ccaa!G16 -> 14706108.94 | D12: -0.07462806483 | E12: =empresa_ccaa!K16 -> 0 | F12: =empresa_ccaa!L16 -> 0 | G12: n.a. | H12: 0 | I12: 0 | J12: 0 | L12: -0.07462806483 | M12: 0 | BX12: =IF(G12="n.a.","n.a.",(G12-D12)*100) -> n.a. | BY12: =empresa_ccaa!M16-empresa_ccaa!H16 ->  | CA12: =IF(CB12=$CB$27,1,0) -> 1 | CB12: =I12 -> 0 | CC12: =A12 -> BALEARES | CD12: =G12 -> n.a. | CE12: =D12 -> -0.07462806483
A13: CANARIAS | B13: =empresa_ccaa!F17 -> 78062358.27 | C13: =empresa_ccaa!G17 -> 80490428.9 | D13: 0.03110424391 | E13: =empresa_ccaa!K17 -> 0 | F13: =empresa_ccaa!L17 -> 0 | G13: n.a. | H13: 0 | I13: 0 | J13: 0 | L13: 0.03110424391 | M13: 0 | BX13: =IF(G13="n.a.","n.a.",(G13-D13)*100) -> n.a. | BY13: =empresa_ccaa!M17-empresa_ccaa!H17 ->  | CA13: =IF(CB13=$CB$27,1,0) -> 1 | CB13: =I13 -> 0 | CC13: =A13 -> CANARIAS | CD13: =G13 -> n.a. | CE13: =D13 -> 0.03110424391
A14: CANTABRIA | B14: =empresa_ccaa!F18 -> 69764911.23 | C14: =empresa_ccaa!G18 -> 83188720.47 | D14: 0.1924149118 | E14: =empresa_ccaa!K18 -> 0 | F14: =empresa_ccaa!L18 -> 0 | G14: n.a. | H14: 0 | I14: 0 | J14: 0 | L14: 0.1924149118 | M14: 0 | BX14: =IF(G14="n.a.","n.a.",(G14-D14)*100) -> n.a. | BY14: =empresa_ccaa!M18-empresa_ccaa!H18 ->  | CA14: =IF(CB14=$CB$27,1,0) -> 1 | CB14: =I14 -> 0 | CC14: =A14 -> CANTABRIA | CD14: =G14 -> n.a. | CE14: =D14 -> 0.1924149118
A15: CASTILLA-LA MANCHA | B15: =empresa_ccaa!F19 -> 128089968 | C15: =empresa_ccaa!G19 -> 145716199.6 | D15: 0.137608213 | E15: =empresa_ccaa!K19 -> 0 | F15: =empresa_ccaa!L19 -> 0 | G15: n.a. | H15: 0 | I15: 0 | J15: 0 | L15: 0.137608213 | M15: 0 | BX15: =IF(G15="n.a.","n.a.",(G15-D15)*100) -> n.a. | BY15: =empresa_ccaa!M19-empresa_ccaa!H19 ->  | CA15: =IF(CB15=$CB$27,1,0) -> 1 | CB15: =I15 -> 0 | CC15: =A15 -> CASTILLA-LA MANCHA | CD15: =G15 -> n.a. | CE15: =D15 -> 0.137608213
A16: CASTILLA Y LEÓN | B16: =empresa_ccaa!F20 -> 201310957.1 | C16: =empresa_ccaa!G20 -> 214737555.4 | D16: 0.0666958146 | E16: =empresa_ccaa!K20 -> 0 | F16: =empresa_ccaa!L20 -> 0 | G16: n.a. | H16: 0 | I16: 0 | J16: =(I16-H16)*100 -> 0 | L16: 0.0666958146 | M16: 0 | BX16: =IF(G16="n.a.","n.a.",(G16-D16)*100) -> n.a. | BY16: =empresa_ccaa!M20-empresa_ccaa!H20 ->  | CA16: =IF(CB16=$CB$27,1,0) -> 1 | CB16: =I16 -> 0 | CC16: =A16 -> CASTILLA Y LEÓN | CD16: =G16 -> n.a. | CE16: =D16 -> 0.0666958146
A17: CATALUÑA | B17: =empresa_ccaa!F21 -> 753447928.6 | C17: =empresa_ccaa!G21 -> 820399050.1 | D17: 0.088859653 | E17: =empresa_ccaa!K21 -> 0 | F17: =empresa_ccaa!L21 -> 0 | G17: =IF(E17>0,((F17/E17)-1),"n.a.") -> n.a. | H17: 0 | I17: 0 | J17: =(I17-H17)*100 -> 0 | L17: 0.088859653 | M17: 0 | BX17: =IF(G17="n.a.","n.a.",(G17-D17)*100) -> n.a. | BY17: =empresa_ccaa!M21-empresa_ccaa!H21 ->  | CA17: =IF(CB17=$CB$27,1,0) -> 1 | CB17: =I17 -> 0 | CC17: =A17 -> CATALUÑA | CD17: =G17 -> n.a. | CE17: =D17 -> 0.088859653
A18: COMUNIDAD VALENCIANA | B18: =empresa_ccaa!F22 -> 224736662.4 | C18: =empresa_ccaa!G22 -> 240813524 | D18: 0.0715364439 | E18: =empresa_ccaa!K22 -> 0 | F18: =empresa_ccaa!L22 -> 0 | G18: n.a. | H18: 0 | I18: 0 | J18: =(I18-H18)*100 -> 0 | L18: 0.0715364439 | M18: 0 | BX18: =IF(G18="n.a.","n.a.",(G18-D18)*100) -> n.a. | BY18: =empresa_ccaa!M22-empresa_ccaa!H22 ->  | CA18: =IF(CB18=$CB$27,1,0) -> 1 | CB18: =I18 -> 0 | CC18: =A18 -> COMUNIDAD VALENCIANA | CD18: =G18 -> n.a. | CE18: =D18 -> 0.0715364439
A19: EXTREMADURA | B19: =empresa_ccaa!F23 -> 19306564.47 | C19: =empresa_ccaa!G23 -> 22472286.94 | D19: 0.1639712998 | E19: =empresa_ccaa!K23 -> 0 | F19: =empresa_ccaa!L23 -> 0 | G19: n.a. | H19: 0 | I19: 0 | J19: 0 | L19: 0.1639712998 | M19: 0 | BX19: =IF(G19="n.a.","n.a.",(G19-D19)*100) -> n.a. | BY19: =empresa_ccaa!M23-empresa_ccaa!H23 ->  | CA19: =IF(CB19=$CB$27,1,0) -> 1 | CB19: =I19 -> 0 | CC19: =A19 -> EXTREMADURA | CD19: =G19 -> n.a. | CE19: =D19 -> 0.1639712998
A20: GALICIA | B20: =empresa_ccaa!F24 -> 154053613.8 | C20: =empresa_ccaa!G24 -> 178289299.3 | D20: 0.1573198114 | E20: =empresa_ccaa!K24 -> 0 | F20: =empresa_ccaa!L24 -> 0 | G20: n.a. | H20: 0 | I20: 0 | J20: 0 | L20: 0.1573198114 | M20: 0 | BX20: =IF(G20="n.a.","n.a.",(G20-D20)*100) -> n.a. | BY20: =empresa_ccaa!M24-empresa_ccaa!H24 ->  | CA20: =IF(CB20=$CB$27,1,0) -> 1 | CB20: =I20 -> 0 | CC20: =A20 -> GALICIA | CD20: =G20 -> n.a. | CE20: =D20 -> 0.1573198114
A21: MADRID | B21: =empresa_ccaa!F25 -> 480458927.1 | C21: =empresa_ccaa!G25 -> 503887515.6 | D21: 0.04876293714 | E21: =empresa_ccaa!K25 -> 0 | F21: =empresa_ccaa!L25 -> 0 | G21: n.a. | H21: 0 | I21: 0 | J21: 0 | L21: 0.04876293714 | M21: 0 | BX21: =IF(G21="n.a.","n.a.",(G21-D21)*100) -> n.a. | BY21: =empresa_ccaa!M25-empresa_ccaa!H25 ->  | CA21: =IF(CB21=$CB$27,1,0) -> 1 | CB21: =I21 -> 0 | CC21: =A21 -> MADRID | CD21: =G21 -> n.a. | CE21: =D21 -> 0.04876293714
A22: MURCIA | B22: =empresa_ccaa!F26 -> 169130422.2 | C22: =empresa_ccaa!G26 -> 187648796 | D22: 0.1094916784 | E22: =empresa_ccaa!K26 -> 0 | F22: =empresa_ccaa!L26 -> 0 | G22: n.a. | H22: 0 | I22: 0 | J22: 0 | L22: 0.1094916784 | M22: 0 | BX22: =IF(G22="n.a.","n.a.",(G22-D22)*100) -> n.a. | BY22: =empresa_ccaa!M26-empresa_ccaa!H26 ->  | CA22: =IF(CB22=$CB$27,1,0) -> 1 | CB22: =I22 -> 0 | CC22: =A22 -> MURCIA | CD22: =G22 -> n.a. | CE22: =D22 -> 0.1094916784
A23: NAVARRA | B23: =empresa_ccaa!F27 -> 97600417.8 | C23: =empresa_ccaa!G27 -> 116856447.9 | D23: 0.1972945456 | E23: =empresa_ccaa!K27 -> 0 | F23: =empresa_ccaa!L27 -> 0 | G23: n.a. | H23: 0 | I23: 0 | J23: 0 | L23: 0.1972945456 | M23: 0 | BX23: =IF(G23="n.a.","n.a.",(G23-D23)*100) -> n.a. | BY23: =empresa_ccaa!M27-empresa_ccaa!H27 ->  | CA23: =IF(CB23=$CB$27,1,0) -> 1 | CB23: =I23 -> 0 | CC23: =A23 -> NAVARRA | CD23: =G23 -> n.a. | CE23: =D23 -> 0.1972945456
A24: PAIS VASCO | B24: =empresa_ccaa!F28 -> 157731184.4 | C24: =empresa_ccaa!G28 -> 162069759.2 | D24: 0.02750613192 | E24: =empresa_ccaa!K28 -> 0 | F24: =empresa_ccaa!L28 -> 0 | G24: n.a. | H24: 0 | I24: 0 | J24: 0 | L24: 0.02750613192 | M24: 0 | BX24: =IF(G24="n.a.","n.a.",(G24-D24)*100) -> n.a. | BY24: =empresa_ccaa!M28-empresa_ccaa!H28 ->  | CA24: =IF(CB24=$CB$27,1,0) -> 1 | CB24: =I24 -> 0 | CC24: =A24 -> PAIS VASCO | CD24: =G24 -> n.a. | CE24: =D24 -> 0.02750613192
A25: RIOJA (LA) | B25: =empresa_ccaa!F29 -> 26331353.97 | C25: =empresa_ccaa!G29 -> 27653500.05 | D25: 0.0502118532 | E25: =empresa_ccaa!K29 -> 0 | F25: =empresa_ccaa!L29 -> 0 | G25: n.a. | H25: 0 | I25: 0 | J25: 0 | L25: 0.0502118532 | M25: 0 | BX25: =IF(G25="n.a.","n.a.",(G25-D25)*100) -> n.a. | BY25: =empresa_ccaa!M29-empresa_ccaa!H29 ->  | CA25: =IF(CB25=$CB$27,1,0) -> 1 | CB25: =I25 -> 0 | CC25: =A25 -> RIOJA (LA) | CD25: =G25 -> n.a. | CE25: =D25 -> 0.0502118532
CA26: codifico=1 | CB26: máximo
CA27: =DMAX(CA8:CC25,CB8,CA8:CA25)*1 -> 0 | CB27: =MAX(CB9:CB25) -> 0
J28: =I6 -> Cuota de Facturación | BZ28: geo data | CA28: =VLOOKUP(1,CA8:CE25,3,0) -> ANDALUCIA
M29: =I7 -> 2018 | CA29: el dato a buscar debe estar en la primera columna.
B30: % i.a. | F30: % i.a. | CA30: =VLOOKUP(1,CA8:CE25,4,0)*1 -> 
B31: =C7 -> 2018 | F31: =B31 -> 2018 | CA31: =VLOOKUP(1,CA8:CE25,5,0)*1 -> 0.0258806809
B32: Total | F32: Empresa | J32: =J5 -> iEMPRESA
M33: Ámbito
A34: Ámbito | B34: =F34 -> Nacional | F34: =J34 -> Nacional | J34: Nacional | M34: Nacional
J38: =CA28 -> ANDALUCIA | M38: CCAA
M39: Líder para la
B40: % i.a. | F40: % i.a. | M40: Empresa
B41: =B31 -> 2018 | F41: =B41 -> 2018
B42: Total | F42: Empresa | J42: =J32 -> iEMPRESA
A44: Ámbito | B44: =F44 -> ANDALUCIA | F44: =J44 -> ANDALUCIA | J44: =J38 -> ANDALUCIA
A48: Fuente: Cifras consolidadas del sector. Valores absolutos 2015-2018 y cifras de evolución de 2016 a la fecha. ASEMPLEO ©.
A49: Nota de Confidencialidad: Este informe comparativo contiene datos redondeados que son ficticeos y serán reemplazados por los que la Empresa introduzca en "empresa_ccaa".

Sheet Ayuda y Version (hidden)
G2: Versión de plantilla: | H2: 2.5

Sheet pBlock (hidden)
B4: Block Test
B5: Info1 | C5: Info2

Sheet pAccel0 (hidden)
A1: Gauge Configuration | O1: Gauge Configuration | Z1: Gauge Configuration | AK1: Gauge Configuration
F2: Decal | T2: Decal | AE2: Decal | AP2: Decal
A3: Title: | B3: =Dashboard!#REF! ->  | F3: 0 | O3: Title: | P3: =pAccel0!B3 ->  | T3: 0 | Z3: Title: | AA3: Empresa | AE3: 0 | AK3: Title: | AL3: CCAA | AP3: 0
A4: Real Value: | B4: =Dashboard!#REF! ->  | O4: Real Value: | P4: =Dashboard!I8 -> 0 | Z4: Real Value: | AA4: =Dashboard!I8 -> 0 | AK4: Real Value: | AL4: =Dashboard!CA27 -> 0
A6: Color bands | O6: Color bands | Z6: Color bands | AK6: Color bands
A7: Red: | B7: 2 | O7: Red: | P7: 2 | Z7: Red: | AA7: 2 | AK7: Red: | AL7: 2
A8: Yellow: | B8: 15 | O8: Yellow: | P8: 15 | Z8: Yellow: | AA8: 15 | AK8: Yellow: | AL8: 15
A9: Green: | B9: 23 | O9: Green: | P9: 23 | Z9: Green: | AA9: 23 | AK9: Green: | AL9: 23
A11: Advanced Parameters | O11: Advanced Parameters | Z11: Advanced Parameters | AK11: Advanced Parameters
B12: Value to 100% | C12: =IF(ISERROR((B4-F3/100)*B27),0,(B4-F3/100)*B27) -> 0 | P12: Value to 100% | Q12: =IF(ISERROR((P4-T3/100)*P27),0,(P4-T3/100)*P27) -> 0 | AA12: Value to 100% | AB12: =IF(ISERROR((AA4-AE3/100)*AA27),0,(AA4-AE3/100)*AA27) -> 0 | AL12: Value to 100% | AM12: =IF(ISERROR((AL4-AP3/100)*AL27),0,(AL4-AP3/100)*AL27) -> 0
B13: Relative value | C13: =IF(C12>100%,102%,IF(C12<0%,-2%,C12))*1.506-0.253 -> -0.253 | P13: Relative value | Q13: =IF(Q12>100%,102%,IF(Q12<0%,-2%,Q12))*1.506-0.253 -> -0.253 | AA13: Relative value | AB13: =IF(AB12>100%,102%,IF(AB12<0%,-2%,AB12))*1.506-0.253 -> -0.253 | AL13: Relative value | AM13: =IF(AM12>100%,102%,IF(AM12<0%,-2%,AM12))*1.506-0.253 -> -0.253
A15: Angle | C15: =C13*PI() -> -0.7948229414 | O15: Angle | Q15: =Q13*PI() -> -0.7948229414 | Z15: Angle | AB15: =AB13*PI() -> -0.7948229414 | AK15: Angle | AM15: =AM13*PI() -> -0.7948229414
A16: x | B16: 0 | C16: =-COS(C15) -> -0.7004111508 | O16: x | P16: 0 | Q16: =-COS(Q15) -> -0.7004111508 | Z16: x | AA16: 0 | AB16: =-COS(AB15) -> -0.7004111508 | AK16: x | AL16: 0 | AM16: =-COS(AM15) -> -0.7004111508
A17: y | B17: 0 | C17: =SIN(C15) -> -0.7137396023 | O17: y | P17: 0 | Q17: =SIN(Q15) -> -0.7137396023 | Z17: y | AA17: 0 | AB17: =SIN(AB15) -> -0.7137396023 | AK17: y | AL17: 0 | AM17: =SIN(AM15) -> -0.7137396023
D19: Value | E19: Label | R19: Value | S19: Label | AC19: Value | AD19: Label | AN19: Value | AO19: Label
C20: 70 | D20: 10 | E20: =B26+F3 -> 4 | Q20: 70 | R20: 10 | S20: =P26+T3 -> 4 | AB20: 70 | AC20: 10 | AD20: =AA26+AE3 -> 4 | AM20: 70 | AN20: 10 | AO20: =AL26+AP3 -> 4
C21: =B7*$C$20/$B$25 -> 3.5 | D21: 10 | E21: =E20+$B$26 -> 8 | Q21: =P7*$C$20/$B$25 -> 3.5 | R21: 10 | S21: =S20+$B$26 -> 8 | AB21: =AA7*$AB$20/$AA$25 -> 3.5 | AC21: 10 | AD21: =AD20+$AA$26 -> 8 | AM21: =AL7*$AM$20/$AL$25 -> 3.5 | AN21: 10 | AO21: =AO20+$AL$26 -> 8
C22: =B8*$C$20/$B$25 -> 26.25 | D22: 10 | E22: 12 | Q22: =P8*$C$20/$B$25 -> 26.25 | R22: 10 | S22: 12 | AB22: =AA8*$AB$20/$AA$25 -> 26.25 | AC22: 10 | AD22: 12 | AM22: =AL8*$AM$20/$AL$25 -> 26.25 | AN22: 10 | AO22: =AO21+$AL$26 -> 12
C23: =B9*$C$20/$B$25 -> 40.25 | D23: 10 | E23: 16 | Q23: =P9*$C$20/$B$25 -> 40.25 | R23: 10 | S23: 16 | AB23: =AA9*$AB$20/$AA$25 -> 40.25 | AC23: 10 | AD23: 16 | AM23: 40.25 | AN23: 10 | AO23: 16
A24: White | C24: 23 | D24: 10 | E24: 20 | O24: White | Q24: 23 | R24: 10 | S24: 20 | Z24: White | AB24: 23 | AC24: 10 | AD24: 20 | AK24: White | AM24: 23 | AN24: 10 | AO24: 20
A25: Total | B25: =SUM(B7:B24) -> 40 | C25: =SUM(C21:C24) -> 93 | D25: 10 | E25: 24 | O25: Total | P25: =SUM(P7:P24) -> 40 | Q25: =SUM(Q21:Q24) -> 93 | R25: 10 | S25: 24 | Z25: Total | AA25: =SUM(AA7:AA24) -> 40 | AB25: =SUM(AB21:AB24) -> 93 | AC25: 10 | AD25: 24 | AK25: Total | AL25: =SUM(AL7:AL24) -> 40 | AM25: =SUM(AM21:AM24) -> 93 | AN25: 10 | AO25: 24
A26: Increment | B26: =B25/10 -> 4 | D26: 10 | E26: 28 | O26: Increment | P26: =P25/10 -> 4 | R26: 10 | S26: 28 | Z26: Increment | AA26: =AA25/10 -> 4 | AC26: 10 | AD26: 28 | AK26: Increment | AL26: =AL25/10 -> 4 | AN26: 10 | AO26: 28
A27: Conversion | B27: =100/B25 -> 2.5 | D27: 10 | E27: 32 | O27: Conversion | P27: =100/P25 -> 2.5 | R27: 10 | S27: 32 | Z27: Conversion | AA27: =100/AA25 -> 2.5 | AC27: 10 | AD27: 32 | AK27: Conversion | AL27: =100/AL25 -> 2.5 | AN27: 10 | AO27: 32
D28: 10 | E28: 36 | R28: 10 | S28: 36 | AC28: 10 | AD28: 36 | AN28: 10 | AO28: 36
D29: 10 | E29: 40 | R29: 10 | S29: 40 | AC29: 10 | AD29: 40 | AN29: 10 | AO29: 40
D30: 33 | E30: =F3 -> 0 | R30: 33 | S30: =T3 -> 0 | AC30: 33 | AD30: =AE3 -> 0 | AN30: 33 | AO30: =AP3 -> 0

Sheet pAccel1 (hidden)
A1: Gauge Configuration | Q1: Gauge Configuration | X1: Gauge Configuration | AE1: Gauge Configuration | AL1: Gauge Configuration | AS1: Gauge Configuration | AZ1: Gauge Configuration | BG1: Gauge Configuration
F2: Decal | V2: Decal | AC2: Decal | AJ2: Decal | AQ2: Decal | AX2: Decal | BE2: Decal | BL2: Decal
A3: Title: | B3: CPDs | F3: 100 | Q3: Title: | R3: Facturación | V3: 100 | X3: Title: | Y3: CPDs | AC3: 100 | AE3: Title: | AF3: Facturación | AJ3: 100 | AL3: Title: | AM3: Facturación | AQ3: 100 | AS3: Title: | AT3: Facturación | AX3: 100 | AZ3: Title: | BA3: Facturación | BE3: 100 | BG3: Title: | BH3: Facturación | BL3: 100
A4: Real Value: | B4: =Dashboard!#REF! ->  | C4: =Dashboard!#REF! ->  | Q4: Real Value: | R4: =Dashboard!#REF! ->  | X4: Real Value: | Y4: =Dashboard!#REF! ->  | AE4: Real Value: | AF4: =Dashboard!#REF! ->  | AL4: Real Value: | AM4: =Dashboard!D8 -> 0.07438239871 | AS4: Real Value: | AT4: =Dashboard!$G$8 -> n.a. | AZ4: Real Value: | BA4: =Dashboard!CA31 -> 0.0258806809 | BG4: Real Value: | BH4: =Dashboard!CA30 -> 
A6: Color bands
A7: Red: | B7: -50
A8: Yellow: | B8: 0
A9: Green: | B9: 50
A11: Advanced Parameters | Q11: Advanced Parameters | X11: Advanced Parameters | AE11: Advanced Parameters | AL11: Advanced Parameters | AS11: Advanced Parameters | AZ11: Advanced Parameters | BG11: Advanced Parameters
B12: Value to 100% | C12: =IF(ISERROR((B4-F3/100)*B27),0,(B4-F3/100)*B27) -> 0 | E12: =IF(ISERROR((C4-F3/100)*B27),0,(C4-F3/100)*B27) -> 0 | R12: Value to 100% | S12: =IF(ISERROR((R4-V3/100)*R27),0,(R4-V3/100)*R27) -> 0 | Y12: Value to 100% | Z12: =IF(ISERROR((Y4-AC3/100)*Y27),0,(Y4-AC3/100)*Y27) -> 0 | AF12: Value to 100% | AG12: =IF(ISERROR((AF4-AJ3/100)*AF27),0,(AF4-AJ3/100)*AF27) -> 0 | AM12: Value to 100% | AN12: =IF(ISERROR((AM4-AQ3/100)*AM27),0,(AM4-AQ3/100)*AM27) -> -1.851235203 | AT12: Value to 100% | AU12: =IF(ISERROR((AT4-AX3/100)*AT27),0,(AT4-AX3/100)*AT27) -> 0 | BA12: Value to 100% | BB12: =IF(ISERROR((BA4-BE3/100)*BA27),0,(BA4-BE3/100)*BA27) -> -1.948238638 | BH12: Value to 100% | BI12: =IF(ISERROR((BH4-BL3/100)*BH27),0,(BH4-BL3/100)*BH27) -> 0
B13: Relative value | C13: =IF(B4<-100%,-100%,IF(B4>100%,100%,2*B4/1)) ->  | D13: ojo1, todo en porcentaje, por 2, y con 1 al final en lugar de 100. | E13: =IF(C4<-100%,-100%,IF(C4>100%,100%,2*C4/1)) ->  | I13: Todos los negritas tienen dato 50, en lugar de 100 para que la escala recorra menos. | R13: Relative value | S13: =IF(R4<-100%,-100%,IF(R4>100%,100%,2*R4/1)) ->  | Y13: Relative value | Z13: =IF(Y4<-100%,-100%,IF(Y4>100%,100%,2*Y4/1)) ->  | AF13: Relative value | AG13: =IF(AF4<-100%,-100%,IF(AF4>100%,100%,2*AF4/1)) ->  | AM13: Relative value | AN13: =IF(AM4<-100%,-100%,IF(AM4>100%,100%,2*AM4/1)) -> 0.1487647974 | AT13: Relative value | AU13: =IF(AT4<-100%,-100%,IF(AT4>100%,100%,2*AT4/1)) -> 1 | BA13: Relative value | BB13: =IF(BA4<-100%,-100%,IF(BA4>100%,100%,2*BA4/1)) -> 0.0517613618 | BH13: Relative value | BI13: =IF(BH4<-100%,-100%,IF(BH4>100%,100%,2*BH4/1)) -> 
A15: Angle | C15: =C13*PI()/2 ->  | E15: =E13*PI()/2 ->  | Q15: Angle | S15: =S13*PI()/2 ->  | X15: Angle | Z15: =Z13*PI()/2 ->  | AE15: Angle | AG15: =AG13*PI()/2 ->  | AL15: Angle | AN15: =AN13*PI()/2 -> 0.2336791973 | AS15: Angle | AU15: =AU13*PI()/2 -> 1.570796327 | AZ15: Angle | BB15: =BB13*PI()/2 -> 0.08130655699 | BG15: Angle | BI15: =BI13*PI()/2 -> 
A16: x | B16: 0 | C16: =SIN(C15) ->  | D16: =B16 -> 0 | E16: =SIN(E15) ->  | Q16: x | R16: 0 | S16: =SIN(S15) ->  | X16: x | Y16: 0 | Z16: =SIN(Z15) ->  | AE16: x | AF16: 0 | AG16: =SIN(AG15) ->  | AL16: x | AM16: 0 | AN16: =SIN(AN15) -> 0.2315582833 | AS16: x | AT16: 0 | AU16: =SIN(AU15) -> 1 | AZ16: x | BA16: 0 | BB16: =SIN(BB15) -> 0.08121700362 | BG16: x | BH16: 0 | BI16: =SIN(BI15) -> 
A17: y | B17: 0 | C17: =-COS(C15) ->  | D17: =B17 -> 0 | E17: =-COS(E15) ->  | Q17: y | R17: 0 | S17: =-COS(S15) ->  | X17: y | Y17: 0 | Z17: =-COS(Z15) ->  | AE17: y | AF17: 0 | AG17: =-COS(AG15) ->  | AL17: y | AM17: 0 | AN17: =-COS(AN15) -> -0.9728210326 | AS17: y | AT17: 0 | AU17: =-COS(AU15) -> -6.125742275e-17 | AZ17: y | BA17: 0 | BB17: =-COS(BB15) -> -0.9966964424 | BG17: y | BH17: 0 | BI17: =-COS(BI15) -> 
D19: Value | E19: Label
C20: 50 | D20: 0 | E20: 50
C21: =E21 -> 40 | D21: =D31/D33 -> 5 | E21: =E20+$B$26 -> 40
C22: =E22 -> 30 | D22: =D21 -> 5 | E22: =E21+$B$26 -> 30
C23: 20 | D23: =D22 -> 5 | E23: 20
A24: White | C24: 10 | D24: 5 | E24: 10 | Q24: White | X24: White | AE24: White | AL24: White | AS24: White | AZ24: White | BG24: White
A25: Total | B25: 50 | C25: 0 | D25: 5 | E25: 0 | Q25: Total | R25: 50 | X25: Total | Y25: 50 | AE25: Total | AF25: 50 | AL25: Total | AM25: 50 | AS25: Total | AT25: 50 | AZ25: Total | BA25: 50 | BG25: Total | BH25: 50
A26: Increment | B26: -10 | C26: -10 | D26: 5 | E26: -10 | Q26: Increment | R26: -10 | X26: Increment | Y26: -10 | AE26: Increment | AF26: -10 | AL26: Increment | AM26: -10 | AS26: Increment | AT26: -10 | AZ26: Increment | BA26: -10 | BG26: Increment | BH26: -10
A27: Conversion | B27: =100/B25 -> 2 | C27: -20 | D27: 5 | E27: -20 | Q27: Conversion | R27: =100/R25 -> 2 | X27: Conversion | Y27: =100/Y25 -> 2 | AE27: Conversion | AF27: =100/AF25 -> 2 | AL27: Conversion | AM27: =100/AM25 -> 2 | AS27: Conversion | AT27: =100/AT25 -> 2 | AZ27: Conversion | BA27: =100/BA25 -> 2 | BG27: Conversion | BH27: =100/BH25 -> 2
C28: -30 | D28: 5 | E28: -30
C29: -40 | D29: 5 | E29: -40
C30: -50 | D30: 5 | E30: -50
D31: 50
D33: 10
D35: =SUM(D20:D30) -> 50

Sheet empresa_ccaa
M3: =Dashboard!M3 -> 2018
M4: =Dashboard!M4 -> OCTUBRE
K5: Empresa | L5: =L9 -> iEMPRESA
C9: Facturación, € | F9: ASEMPLEO | G9: ASEMPLEO | K9: Empresa = | L9: iEMPRESA
C10: Dato acumulado a | E10: =M4 -> OCTUBRE | F10: =Dashboard!B7 -> 2017 | G10: =Dashboard!C7 -> 2018 | J10: Facturación | K10: =F10 -> 2017 | L10: =G10 -> 2018
H11: Estructura (%) | J11: Datos acumulados | M11: Estructura (%) | CA11: check
F12: =E65 -> 3085939767 | G12: =B65 -> 3315479369 | H12: =G12/G$12 -> 1 | I12: TOTAL | K12: =SUM(K13:K29) -> 0 | L12: =SUM(L13:L29) -> 0 | M12: =L12/L$12 ->  | CA12: =L12/K12-1 -> 
F13: 281344044.2 | G13: =B66 -> 288625419.7 | H13: =G13/G$12 -> 0.08705390307 | I13: ANDALUCIA | M13: =L13/L$12 -> 
F14: 169604054.9 | G14: 166190783.1 | H14: =G14/G$12 -> 0.05012571776 | I14: ARAGON | M14: =L14/L$12 -> 
F15: 59074292.72 | G15: 61733974.35 | H15: 0.01861992414 | I15: ASTURIAS
F16: 15892106.06 | G16: =B69 -> 14706108.94 | H16: 0.004435590543 | I16: BALEARES
F17: 78062358.27 | G17: 80490428.9 | H17: 0.02427716174 | I17: CANARIAS
F18: 69764911.23 | G18: 83188720.47 | H18: 0.02509100833 | I18: CANTABRIA
F19: 128089968 | G19: 145716199.6 | H19: 0.04395026581 | I19: CASTILLA-LA MANCHA
F20: 201310957.1 | G20: 214737555.4 | H20: 0.06476817722 | I20: CASTILLA Y LEÓN
F21: 753447928.6 | G21: 820399050.1 | H21: 0.2474450777 | I21: CATALUÑA | M21: =L21/L$12 -> 
F22: 224736662.4 | G22: 240813524 | H22: 0.0726330938 | I22: COMUNIDAD VALENCIANA
F23: 19306564.47 | G23: 22472286.94 | H23: 0.006777990281 | I23: EXTREMADURA
F24: 154053613.8 | G24: 178289299.3 | H24: 0.05377481789 | I24: GALICIA
F25: 480458927.1 | G25: 503887515.6 | H25: 0.1519802899 | I25: MADRID
F26: 169130422.2 | G26: 187648796 | H26: 0.05659778727 | I26: MURCIA
F27: 97600417.8 | G27: 116856447.9 | H27: 0.03524571709 | I27: NAVARRA
F28: 157731184.4 | G28: 162069759.2 | H28: 0.04888275303 | I28: PAIS VASCO
F29: 26331353.97 | G29: 27653500.05 | H29: 0.008340724513 | I29: RIOJA (LA)
A31: Fuente: Cifras consolidadas del sector. ASEMPLEO ©.
A32: Nota de Confidencialidad: Este informe comparativo se genera con los datos propios de la Empresa.
A60: D03: | D60: D03: | G60: D03 : | H60: Variación Interanual (%)
A61: MES: | B61: ACUMULADO A LA FECHA | D61: =A61 -> MES: | E61: =B61 -> ACUMULADO A LA FECHA | G61: =D61 -> MES: | H61: Tasa % i.a.
B63: Facturación | E63: Facturación | H63: Facturación
I64: check
A65: TOTAL | B65: 3315479369 | D65: TOTAL | E65: 3085939767 | G65: TOTAL | H65: 0.07438239871 | I65: =B65/E65-1 -> 0.07438239871
A66: ANDALUCIA | B66: 288625419.7 | D66: ANDALUCIA | E66: 281344044.2 | G66: ANDALUCIA | H66: 0.0258806809 | I66: =B66/E66-1 -> 0.0258806809
A67: ARAGON | B67: 166190783.1 | D67: ARAGON | E67: 169604054.9 | G67: ARAGON | H67: -0.02012494214 | I67: -0.02012494214
A68: ASTURIAS | B68: 61733974.35 | D68: ASTURIAS | E68: 59074292.72 | G68: ASTURIAS | H68: 0.04502265724 | I68: 0.04502265724
A69: BALEARES | B69: 14706108.94 | D69: BALEARES | E69: 15892106.06 | G69: BALEARES | H69: -0.07462806483 | I69: -0.07462806483
A70: CANARIAS | B70: 80490428.9 | D70: CANARIAS | E70: 78062358.27 | G70: CANARIAS | H70: 0.03110424391 | I70: 0.03110424391
A71: CANTABRIA | B71: 83188720.47 | D71: CANTABRIA | E71: 69764911.23 | G71: CANTABRIA | H71: 0.1924149118 | I71: 0.1924149118
A72: CASTILLA-LA MANCHA | B72: 145716199.6 | D72: CASTILLA-LA MANCHA | E72: 128089968 | G72: CASTILLA-LA MANCHA | H72: 0.137608213 | I72: 0.137608213
A73: CASTILLA Y LEÓN | B73: 214737555.4 | D73: CASTILLA Y LEÓN | E73: 201310957.1 | G73: CASTILLA Y LEÓN | H73: 0.0666958146 | I73: 0.0666958146
A74: CATALUÑA | B74: 820399050.1 | D74: CATALUÑA | E74: 753447928.6 | G74: CATALUÑA | H74: 0.088859653 | I74: 0.088859653
A75: COMUNIDAD VALENCIANA | B75: 240813524 | D75: COMUNIDAD VALENCIANA | E75: 224736662.4 | G75: COMUNIDAD VALENCIANA | H75: 0.0715364439 | I75: 0.0715364439
A76: EXTREMADURA | B76: 22472286.94 | D76: EXTREMADURA | E76: 19306564.47 | G76: EXTREMADURA | H76: 0.1639712998 | I76: 0.1639712998
A77: GALICIA | B77: 178289299.3 | D77: GALICIA | E77: 154053613.8 | G77: GALICIA | H77: 0.1573198114 | I77: 0.1573198114
A78: MADRID | B78: 503887515.6 | D78: MADRID | E78: 480458927.1 | G78: MADRID | H78: 0.04876293714 | I78: 0.04876293714
A79: MURCIA | B79: 187648796 | D79: MURCIA | E79: 169130422.2 | G79: MURCIA | H79: 0.1094916784 | I79: 0.1094916784
A80: NAVARRA | B80: 116856447.9 | D80: NAVARRA | E80: 97600417.8 | G80: NAVARRA | H80: 0.1972945456 | I80: 0.1972945456
A81: PAIS VASCO | B81: 162069759.2 | D81: PAIS VASCO | E81: 157731184.4 | G81: PAIS VASCO | H81: 0.02750613192 | I81: 0.02750613192
A82: RIOJA (LA) | B82: 27653500.05 | D82: RIOJA (LA) | E82: 26331353.97 | G82: RIOJA (LA) | H82: 0.0502118532 | I82: =B82/E82-1 -> 0.0502118532
A83: Ceuta y Melilla | D83: Ceuta y Melilla | G83: Ceuta y Melilla
